fUSD/lending_fUSD_20250326
["ID","MTS","AMOUNT","RATE_DAILY","PERIOD"]
[356719267,1743017446936,-500.0,0.00031854,2]
[356719268,1743017446947,-150.61,0.00031944,2]
[356719269,1743017446958,-15337.3488,0.00031954,2]
[356719270,1743017446969,-2000.0,0.00032303,7]
[356719271,1743017446980,-155.0931,0.00032466,10]
[356719272,1743017446991,-222.0,0.00032492,2]
[356719273,1743017447002,-318.15757793,0.00032789,2]
[356719274,1743017447013,-450.0,0.00033,2]
[356719275,1743017447024,-227.77,0.00034021,120]
[356719276,1743017447035,-500.0,0.00034228,2]
[356719277,1743017447046,-23900.0,0.00034244,2]
[356719278,1743017447056,-500.0,0.00035,2]
[356719279,1743017447066,-1293.9194236,0.00035,2]
[356719280,1743017447077,-1526.33300199,0.00035,4]
[356719281,1743017447087,-150.0,0.00035,30]
[356719282,1743017447097,-150.73,0.00035008,2]
[356719283,1743017447107,-318.15757793,0.00035011,2]
[356719284,1743017447118,-218.62,0.00035014,120]
[356719285,1743017447130,-150.73,0.00035124,2]
[356719286,1743017447141,-159.3,0.00035156,2]
[356719287,1743017447152,-150.73,0.00035241,2]
[356719288,1743017447163,-250.0,0.00035281,2]
[356719289,1743017447173,-150.73,0.00035358,2]
[356719290,1743017447183,-442.5,0.00035393,2]
[356719291,1743017447193,-150.73,0.00035474,2]
[356719292,1743017447203,-150.73,0.00035591,2]
[356719293,1743017447213,-631.6560906,0.00035627,4]
[356719294,1743017447223,-200.0,0.00035635,2]
[356719295,1743017447233,-150.0,0.00035651,7]
[356719296,1743017447243,-150.73,0.00035708,2]
[356719297,1743017447253,-202.07,0.00035731,2]
[356719298,1743017447263,-157.79,0.00035792,2]
[356719299,1743017447274,-150.73,0.00035824,2]
[356719300,1743017447284,-588.2,0.00035867,2]
[356719301,1743017447295,-150.73,0.00035941,2]
[356719302,1743017447305,-150.0,0.00035991,2]
[356719303,1743017447316,-150.73,0.00036058,2]
[356719304,1743017447326,-150.73,0.00036174,2]
[356719305,1743017447336,-150.73,0.00036291,2]
[356719306,1743017447346,-150.73,0.00036408,2]
[356719307,1743017447356,-1500.0,0.00036568,60]
[356719308,1743017447366,-157.72,0.00036629,2]
[356719309,1743017447376,-550.0,0.00037,2]
[356719310,1743017447386,-300.0,0.00037065,2]
[356719311,1743017447397,-275.62,0.000371,2]
[356719312,1743017447408,-318.15757793,0.00037233,2]
[356719313,1743017447417,-588.2,0.00038131,2]
[356719314,1743017447427,-1000.0,0.00038153,2]
[356719315,1743017447438,-227.77,0.00038274,120]
[356719316,1743017447448,-300.0,0.00038434,2]
[356719317,1743017447458,-157.72,0.00038953,2]
[356719318,1743017447469,-600.0,0.00039,2]
[356719319,1743017447480,-1165.4907097,0.00039222,120]
[356719320,1743017447489,-493.57068617,0.00039222,120]
[356719321,1743017447500,-157.79,0.00039371,2]
[356719322,1743017447510,-318.15757793,0.00039456,2]
[356719323,1743017447520,-218.62,0.00039492,120]
[356719324,1743017447530,-500.0,0.00039726,15]
[356719325,1743017447541,-500.0,0.00039726,15]
[356719326,1743017447552,-500.0,0.00039726,15]
[356719327,1743017447562,-500.0,0.00039726,15]
[356719328,1743017447572,-500.0,0.00039726,15]
[356719329,1743017447583,-500.0,0.00039726,15]
[356719330,1743017447593,-500.0,0.00039726,15]
[356719331,1743017447603,-614.74851251,0.00039726,15]
[356719332,1743017447613,-14211.91813584,0.0004,30]
[356719333,1743017447624,-1500.0,0.00040371,5]
[356719334,1743017447634,-588.2,0.00040395,2]
[356719335,1743017447646,-650.0,0.00041,2]
[356719336,1743017447656,-150.0,0.00041,44]
[356719337,1743017447667,-250.977646,0.00041095,30]
[356719338,1743017447678,-179.009756,0.00041095,30]
[356719339,1743017447688,-500.0,0.00041096,31]
[356719340,1743017447699,-500.0,0.00041096,31]
[356719341,1743017447712,-500.0,0.00041096,31]
[356719342,1743017447724,-501.96410728,0.00041096,31]
[356719343,1743017447735,-500.0,0.00041096,31]
[356719344,1743017447744,-157.72,0.00041277,2]
[356719345,1743017447755,-250.977646,0.00041369,30]
[356719346,1743017447768,-179.009756,0.00041369,30]
[356719347,1743017447778,-826.86,0.000415,7]
[356719348,1743017447789,-2000.0,0.000416,2]
[356719349,1743017447799,-318.15757793,0.00041678,15]
[356719350,1743017447811,-1064.0,0.000418,30]
[356719351,1743017447822,-3026.1158,0.00041873,2]
[356719352,1743017447833,-500.0,0.00041973,31]
[356719353,1743017447845,-500.0,0.00041973,31]
[356719354,1743017447854,-500.0,0.00041973,31]
[356719355,1743017447864,-500.0,0.00041973,31]
[356719356,1743017447875,-500.0,0.00041973,31]
[356719357,1743017447886,-279.29401594,0.00041973,31]
[356719358,1743017447896,-308.81044621,0.00041973,31]
[356719359,1743017447907,-227.77,0.00042526,120]
[356719360,1743017447917,-1625.0,0.00042565,2]
[356719361,1743017447930,-588.2,0.00042659,2]
[356719362,1743017447942,-1000.0,0.000429,2]
[356719363,1743017447953,-1509.9925,0.000429,2]
[356719364,1743017447963,-1000.0,0.00042923,2]
[356719365,1743017447974,-157.79,0.0004295,2]
[356719366,1743017447986,-150.61,0.0004299,2]
[356719367,1743017448226,-700.0,0.00043,2]
[356719368,1743017448236,-50000.0,0.00043,10]
[356719369,1743017448247,-6945.82024362,0.00043,7]
[356719370,1743017448256,-1586.10350633,0.00043287,15]
[356719371,1743017448266,-1586.10350626,0.00043355,15]
[356719372,1743017448275,-1586.10350626,0.00043423,15]
[356719373,1743017448285,-1586.10350626,0.00043491,15]
[356719374,1743017448295,-1586.10350626,0.00043559,15]
[356719375,1743017448304,-1687.6701255,0.0004356,2]
[356719376,1743017448314,-218.18,0.000436,36]
[356719377,1743017448324,-218.18,0.000436,36]
[356719378,1743017448333,-218.18,0.000436,36]
[356719379,1743017448343,-218.18,0.000436,36]
[356719380,1743017448352,-218.18,0.000436,36]
[356719381,1743017448361,-218.18,0.000436,36]
[356719382,1743017448371,-218.18,0.000436,36]
[356719383,1743017448380,-218.18,0.000436,36]
[356719384,1743017448389,-218.18,0.000436,36]
[356719385,1743017448399,-218.18,0.000436,36]
[356719386,1743017448408,-218.18,0.000436,36]
[356719387,1743017448417,-218.18,0.000436,36]
[356719388,1743017448427,-157.72,0.00043601,2]
[356719389,1743017448436,-1586.10350626,0.00043628,15]
[356719390,1743017448446,-500.0,0.00043644,2]
[356719391,1743017448456,-150.61,0.0004369,2]
[356719392,1743017448466,-1586.10350626,0.00043696,15]
[356719393,1743017448476,-143557.76,0.000437,17]
[356719394,1743017448486,-1586.10350626,0.00043764,15]
[356719395,1743017448496,-2000.0,0.0004378,3]
[356719396,1743017448505,-1586.10350626,0.00043832,15]
[356719397,1743017448515,-150.61,0.0004389,2]
[356719398,1743017448525,-2743.0,0.000439,7]
[356719399,1743017448535,-430.02587136,0.000439,13]
[356719400,1743017448544,-177.16358262,0.000439,120]
[356719401,1743017448553,-1586.10350626,0.000439,15]
[356719402,1743017448562,-318.15757793,0.000439,15]
[356719403,1743017448572,-762.71150848,0.000439,2]
[356719404,1743017448582,-36017.60714471,0.000439,2]
[356719405,1743017448593,-326.92417432,0.000439,2]
[356719406,1743017448603,-218.62,0.0004397,120]
[356719407,1743017448612,-155.37916426,0.00043973,10]
[356719408,1743017448622,-306.15404838,0.0004398,30]
[356719409,1743017448631,-150.61,0.0004399,2]
[356719410,1743017448641,-150.61,0.0004399,2]
[356719411,1743017448651,-150.61,0.0004399,2]
[356719412,1743017448660,-150.61,0.0004399,2]
[356719413,1743017448670,-150.61,0.0004399,2]
[356719414,1743017448680,-150.61,0.0004399,2]
[356719415,1743017448690,-150.61,0.0004399,2]
[356719416,1743017448700,-150.61,0.0004399,2]
[356719417,1743017448710,-150.61,0.0004399,2]
[356719418,1743017448720,-150.61,0.0004399,2]
[356719419,1743017448730,-150.61,0.0004399,2]
[356719420,1743017448740,-150.61,0.0004399,2]
[356719421,1743017448750,-150.61,0.0004399,2]
[356719422,1743017448760,-150.61,0.0004399,2]
[356719423,1743017448772,-150.61,0.0004399,2]
[356719424,1743017448783,-150.61,0.0004399,2]
[356719425,1743017448794,-150.61,0.0004399,2]
[356719426,1743017448805,-150.61,0.0004399,2]
[356719427,1743017448814,-150.61,0.0004399,2]
[356719428,1743017448824,-150.61,0.0004399,2]
[356719429,1743017448834,-150.61,0.0004399,2]
[356719430,1743017448845,-150.61,0.0004399,2]
[356719431,1743017448854,-150.61,0.0004399,2]
[356719432,1743017448864,-150.61,0.0004399,2]
[356719433,1743017448873,-150.61,0.0004399,2]
[356719434,1743017448883,-150.61,0.0004399,2]
[356719435,1743017448893,-150.61,0.0004399,2]
[356719436,1743017448903,-150.61,0.0004399,2]
[356719437,1743017448912,-150.61,0.0004399,2]
[356719438,1743017448922,-150.61,0.0004399,2]
[356719439,1743017448932,-150.61,0.0004399,2]
[356719440,1743017448942,-150.61,0.0004399,2]
[356719441,1743017448951,-150.61,0.0004399,2]
[356719442,1743017448960,-150.61,0.0004399,2]
[356719443,1743017448969,-150.61,0.0004399,2]
[356719444,1743017448979,-150.61,0.0004399,2]
[356719445,1743017448988,-150.61,0.0004399,2]
[356719446,1743017448997,-150.61,0.0004399,2]
[356719447,1743017449007,-150.61,0.0004399,2]
[356719448,1743017449016,-150.61,0.0004399,2]
[356719449,1743017449026,-150.61,0.0004399,2]
[356719450,1743017449035,-150.61,0.0004399,2]
[356719451,1743017449045,-150.61,0.0004399,2]
[356719452,1743017449055,-150.61,0.0004399,2]
[356719453,1743017449066,-150.61,0.0004399,2]
[356719454,1743017449075,-150.61,0.0004399,2]
[356719455,1743017449085,-150.61,0.0004399,2]
[356719456,1743017449095,-150.61,0.0004399,2]
[356719457,1743017449105,-150.61,0.0004399,2]
[356719458,1743017449115,-150.61,0.0004399,2]
[356719459,1743017449125,-150.61,0.0004399,2]
[356719460,1743017449135,-150.61,0.0004399,2]
[356719461,1743017449145,-150.61,0.0004399,2]
[356719462,1743017449155,-150.61,0.0004399,2]
[356719463,1743017449165,-150.61,0.0004399,2]
[356719464,1743017449175,-150.61,0.0004399,2]
[356719465,1743017449184,-150.61,0.0004399,2]
[356719466,1743017449194,-150.61,0.0004399,2]
[356719467,1743017449203,-150.61,0.0004399,2]
[356719468,1743017449215,-150.61,0.0004399,2]
[356719469,1743017449224,-152.52375466,0.0004399,7]
[356719470,1743017449233,-150.0,0.00043999,7]
[356719471,1743017449244,-150.0,0.00043999,7]
[356719472,1743017449253,-150.0,0.00043999,7]
[356719473,1743017449263,-150.0,0.00043999,7]
[356719474,1743017449273,-150.0,0.00043999,7]
[356719475,1743017449283,-150.0,0.00043999,7]
[356719476,1743017449294,-150.0,0.00043999,7]
[356719477,1743017449303,-150.0,0.00043999,7]
[356719478,1743017449313,-404.42079104,0.00044,2]
[356719479,1743017449322,-499.62976836,0.00044,61]
[356719480,1743017449331,-3530.1495131,0.00044,41]
[356719481,1743017449341,-1151340.68166943,0.00044,2]
[356719482,1743017449452,-531.95670278,0.00044,2]
[356719483,1743017449464,-1992.76024253,0.00044,2]
[356719484,1743017449475,-981.52816192,0.00044,2]
[356719485,1743017449486,-5558.00755719,0.00044,2]
[356719533,1743018632179,-250.0,0.00025,2]
[356719534,1743018632191,-568.69030553,0.00026062,2]
[356719535,1743018632234,-3.30969447,0.00026062,2]
[356719536,1743018632244,-271.85,0.00026849,2]
[356719537,1743018632256,-219.61702903,0.00027,2]
[356719538,1743018632289,-80.38297097,0.00027,2]
[356719539,1743018632299,-350.0,0.00029,2]
[356719540,1743018632309,-571.0,0.00029062,2]
[356719541,1743018632319,-400.0,0.00031,2]
[356719542,1743018632328,-271.85,0.00032646,2]
[356719543,1743018632338,-450.0,0.00033,2]
[356719544,1743018632348,-500.0,0.00035,2]
[356719545,1743018632357,-165.37,0.000365,2]
[356719546,1743018632367,-550.0,0.00037,2]
[356719547,1743018632377,-152.0,0.00037163,3]
[356719548,1743018632387,-271.85,0.00038443,2]
[356719549,1743018632396,-600.0,0.00039,2]
[356719550,1743018632406,-152.0,0.00039767,4]
[356719551,1743018632416,-235.74283905,0.000399,8]
[356719552,1743018632426,-1500.0,0.00040905,60]
[356719553,1743018632435,-470.56,0.00041075,2]
[356719554,1743018632445,-1000.0,0.00041076,2]
[356719555,1743018632454,-496.11,0.000411,7]
[356719556,1743018632464,-200.0,0.00041176,2]
[356719557,1743018632473,-175.56,0.00041239,2]
[356719558,1743018632482,-277.99601192,0.00041254,31]
[356719559,1743018632491,-457.19427917,0.00041254,31]
[356719560,1743018632501,-11287.79124975,0.00041255,2]
[356719561,1743018632516,-12612.20875025,0.00041255,2]
[356719562,1743018632526,-163.96,0.00041411,120]
[356719563,1743018632535,-500.0,0.00041492,2]
[356719564,1743018632545,-2000.0,0.000419,2]
[356719565,1743018632554,-152.0,0.00042371,5]
[356719568,1743018632563,-250.0,0.00042663,2]
[356719569,1743018632573,-473.742068,0.00042679,4]
[356719570,1743018632583,-150.0,0.00042738,7]
[356719571,1743018632592,-157.72,0.00042849,2]
[356719572,1743018632602,-470.56,0.00043339,2]
[356719573,1743018632611,-153.87,0.00043434,2]
[356719574,1743018632621,-192.01,0.000436,36]
[356719575,1743018632631,-192.01,0.000436,36]
[356719576,1743018632641,-192.01,0.000436,36]
[356719577,1743018632650,-192.01,0.000436,36]
[356719579,1743018632659,-192.01,0.000436,36]
[356719580,1743018632669,-192.01,0.000436,36]
[356719582,1743018632678,-192.01,0.000436,36]
[356719583,1743018632687,-192.01,0.000436,36]
[356719584,1743018632697,-192.01,0.000436,36]
[356719585,1743018632706,-192.01,0.000436,36]
[356719587,1743018632715,-192.01,0.000436,36]
[356719588,1743018632724,-192.01,0.000436,36]
[356719589,1743018632734,-2000.0,0.0004378,3]
[356719590,1743018632743,-173.74841736,0.0004387,28]
[356719592,1743018632752,-5000.0,0.0004388,120]
[356719594,1743018632761,-983.22843108,0.0004388,16]
[356719597,1743018632770,-398.93449128,0.000439,13]
[356719600,1743018632780,-482.4056,0.000439,2]
[356719603,1743018632789,-798.079,0.000439,69]
[356719606,1743018632798,-177.16358261,0.000439,120]
[356719609,1743018632807,-6249.33813168,0.000439,2]
[356719612,1743018632816,-508.474339,0.000439,2]
[356719615,1743018632826,-296.49195376,0.000439,2]
[356719618,1743018632835,-150.63,0.0004396,2]
[356719621,1743018632844,-3822.15,0.0004396,2]
[356719624,1743018632853,-3822.15,0.0004396,2]
[356719627,1743018632863,-170.05710411,0.00043969,120]
[356719630,1743018632872,-211.08212547,0.00043969,120]
[356719633,1743018632881,-30200.20069921,0.0004397,3]
[356719646,1743018638379,-481.21429198,0.0004397,3]
[356719647,1743018638392,-296.32204755,0.0004397,3]
[356719656,1743018640374,-34756.02334495,0.0004397,3]
[356719657,1743018640531,-6804.19043582,0.0004397,3]
[356719658,1743018640543,-5815.02376594,0.0004397,3]
[356719675,1743018643294,-7360.84164363,0.0004397,3]
[356719676,1743018643399,-17702.02775222,0.0004397,3]
[356719681,1743018644788,-66657.64910273,0.0004397,3]
[356719682,1743018644799,-25186.3396482,0.0004397,3]
[356719707,1743018646343,-5000.0,0.0004388,120]
[356719708,1743018646354,-235.74283905,0.000439,9]
[356719709,1743018646362,-12146.95316095,0.0004397,3]
[356719721,1743019832323,-466.70541556,0.0003,10]
[356719722,1743019832333,-466.70541556,0.00032,10]
[356719723,1743019832343,-466.70541556,0.00033,10]
[356719724,1743019832352,-466.70541556,0.00035,10]
[356719725,1743019832361,-266.35667552,0.00035,10]
[356719726,1743019832370,-170.17,0.000365,2]
[356719727,1743019832379,-466.70541556,0.0004,10]
[356719728,1743019832388,-423.5,0.00040758,2]
[356719729,1743019832397,-466.70541556,0.00041,10]
[356719730,1743019832406,-510.53,0.000411,7]
[356719731,1743019832415,-1909.07083112,0.000416,2]
[356719732,1743019832426,-90.92916888,0.000416,2]
[356719733,1743019832435,-351.12807434,0.00042,10]
[356719734,1743019832450,-115.57734122,0.00042,10]
[356719735,1743019832460,-355.306551,0.00042679,4]
[356719736,1743019832469,-153.87,0.00042696,2]
[356719737,1743019832478,-607.03625018,0.00042744,2]
[356719738,1743019832491,-392.96374982,0.00042744,2]
[356719739,1743019832502,-157.72,0.00042794,2]
[356719740,1743019832513,-163.52832131,0.00042845,2]
[356719741,1743019832524,-86.47167869,0.00042845,2]
[356719742,1743019832534,-151.84,0.00042877,120]
[356719743,1743019832544,-150.0,0.00042894,7]
[356719744,1743019832553,-235.74283905,0.000429,9]
[356719745,1743019832562,-150.29,0.00042937,120]
[356719746,1743019832573,-466.70541556,0.00043,10]
[356719747,1743019832583,-423.5,0.00043022,2]
[356719748,1743019832592,-1061.67160036,0.000434,15]
[356719749,1743019832607,-938.32839964,0.000434,15]
[356719750,1743019832616,-976.11685111,0.000435,15]
[356719751,1743019832634,-1350.11560118,0.000435,15]
[356719752,1743019832645,-510.674481,0.000435,15]
[356719753,1743019832656,-1163.09306671,0.000435,15]
[356719754,1743019832665,-168.98,0.000436,36]
[356719755,1743019832674,-168.98,0.000436,36]
[356719756,1743019832685,-168.98,0.000436,36]
[356719757,1743019832694,-168.98,0.000436,36]
[356719758,1743019832703,-168.98,0.000436,36]
[356719759,1743019832712,-168.98,0.000436,36]
[356719760,1743019832721,-168.98,0.000436,36]
[356719761,1743019832730,-168.98,0.000436,36]
[356719762,1743019832739,-168.98,0.000436,36]
[356719763,1743019832748,-168.98,0.000436,36]
[356719764,1743019832758,-168.98,0.000436,36]
[356719765,1743019832766,-168.98,0.000436,36]
[356719766,1743019832776,-3822.11857232,0.000436,15]
[356719767,1743019832787,-362.5,0.000436,15]
[356719789,1743019838213,-409.61470772,0.000436,15]
[356719792,1743019838269,-379.43910185,0.000436,15]
[356719793,1743019838280,-1026.32761811,0.000436,15]
[356719794,1743019838290,-638.463,0.000437,68]
[356719795,1743019838300,-8000.0,0.000437,15]
[356719796,1743019838310,-2127.321,0.0004378,3]
[356719797,1743019838320,-10000.0,0.000438,15]
[356719798,1743019838330,-1382.768,0.0004387,2]
[356719799,1743019838341,-1235.827,0.0004387,2]
[356719800,1743019838351,-917.67986898,0.00043873,16]
[356719801,1743019838362,-341.94384966,0.0004388,13]
[356719802,1743019838373,-5000.0,0.0004388,120]
[356719803,1743019838384,-177.16358261,0.000439,120]
[356719804,1743019838394,-197.66130252,0.000439,2]
[356719805,1743019838405,-2000.0,0.000439,16]
[356719806,1743019838415,-217.94944956,0.000439,2]
[356719807,1743019838429,-4166.22542112,0.000439,2]
[356719808,1743019838439,-24011.73809646,0.000439,2]
[356719809,1743019838455,-338.98289266,0.000439,2]
[356719810,1743019838466,-177.09751916,0.000439,9]
[356719811,1743019838476,-500.0,0.0004396,120]
[356719812,1743019838486,-500.0,0.0004396,120]
[356719813,1743019838498,-500.0,0.0004396,120]
[356719814,1743019838508,-500.0,0.0004396,120]
[356719815,1743019838518,-500.0,0.0004396,120]
[356719816,1743019838528,-500.0,0.0004396,120]
[356719818,1743019838539,-500.0,0.0004396,120]
[356719820,1743019838549,-500.0,0.0004396,120]
[356719822,1743019838559,-500.0,0.0004396,120]
[356719824,1743019838568,-500.0,0.0004396,120]
[356719826,1743019838579,-500.0,0.0004396,120]
[356719828,1743019838589,-500.0,0.0004396,120]
[356719830,1743019838599,-500.0,0.0004396,120]
[356719832,1743019838608,-500.0,0.0004396,120]
[356719834,1743019838618,-87.44497324,0.0004396,120]
[356719836,1743019838630,-319.22615902,0.0004396,120]
[356719838,1743019838641,-93.32886774,0.0004396,120]
[356719840,1743019838651,-500.0,0.0004396,120]
[356719842,1743019838660,-500.0,0.0004396,120]
[356719843,1743019838670,-500.0,0.0004396,120]
[356719845,1743019838679,-500.0,0.0004396,120]
[356719848,1743019838688,-500.0,0.0004396,120]
[356719850,1743019838701,-500.0,0.0004396,120]
[356719852,1743019838711,-500.0,0.0004396,120]
[356719854,1743019838720,-500.0,0.0004396,120]
[356719856,1743019838730,-17.27113226,0.0004396,120]
[356719876,1743019840421,-482.72886774,0.0004396,120]
[356719877,1743019840431,-500.0,0.0004396,120]
[356719878,1743019840441,-500.0,0.0004396,120]
[356719879,1743019840452,-500.0,0.0004396,120]
[356719880,1743019840462,-500.0,0.0004396,120]
[356719881,1743019840471,-500.0,0.0004396,120]
[356719882,1743019840481,-500.0,0.0004396,120]
[356719883,1743019840491,-500.0,0.0004396,120]
[356719884,1743019840505,-500.0,0.0004396,120]
[356719885,1743019840516,-500.0,0.0004396,120]
[356719886,1743019840527,-500.0,0.0004396,120]
[356719887,1743019840537,-500.0,0.0004396,120]
[356719888,1743019840548,-500.0,0.0004396,120]
[356719889,1743019840558,-500.0,0.0004396,120]
[356719890,1743019840568,-500.0,0.0004396,120]
[356719891,1743019840580,-500.0,0.0004396,120]
[356719892,1743019840592,-500.0,0.0004396,120]
[356719893,1743019840602,-500.0,0.0004396,120]
[356719894,1743019840613,-500.0,0.0004396,120]
[356719895,1743019840623,-500.0,0.0004396,120]
[356719896,1743019840633,-500.0,0.0004396,120]
[356719897,1743019840642,-500.0,0.0004396,120]
[356719898,1743019840652,-500.0,0.0004396,120]
[356719899,1743019840662,-500.0,0.0004396,120]
[356719900,1743019840672,-500.0,0.0004396,120]
[356719901,1743019840682,-500.0,0.0004396,120]
[356719902,1743019840692,-500.0,0.0004396,120]
[356719903,1743019840706,-500.0,0.0004396,120]
[356719904,1743019840715,-500.0,0.0004396,120]
[356719905,1743019840726,-500.0,0.0004396,120]
[356719906,1743019840735,-500.0,0.0004396,120]
[356719907,1743019840744,-500.0,0.0004396,120]
[356719908,1743019840753,-500.0,0.0004396,120]
[356719909,1743019840763,-500.0,0.0004396,120]
[356719910,1743019840772,-500.0,0.0004396,120]
[356719911,1743019840781,-500.0,0.0004396,120]
[356719912,1743019840790,-500.0,0.0004396,120]
[356719913,1743019840799,-500.0,0.0004396,120]
[356719914,1743019840809,-500.0,0.0004396,120]
[356719915,1743019840818,-500.0,0.0004396,120]
[356719916,1743019840827,-500.0,0.0004396,120]
[356719917,1743019840836,-500.0,0.0004396,120]
[356719918,1743019840845,-53866.2521226,0.0004396,3]
[356719919,1743019840854,-25091.481303,0.0004396,3]
[356719920,1743019840864,-249.81488418,0.0004397,61]
[356719921,1743019840873,-1765.07475655,0.0004397,41]
[356719922,1743019840883,-500.0,0.0004397,120]
[356719923,1743019840892,-500.0,0.0004397,120]
[356719924,1743019840902,-500.0,0.0004397,120]
[356719925,1743019840911,-500.0,0.0004397,120]
[356719926,1743019840920,-500.0,0.0004397,120]
[356719927,1743019840930,-500.0,0.0004397,120]
[356719928,1743019840939,-500.0,0.0004397,120]
[356719929,1743019840950,-500.0,0.0004397,120]
[356719930,1743019840959,-500.0,0.0004397,120]
[356719931,1743019840968,-500.0,0.0004397,120]
[356719932,1743019840977,-500.0,0.0004397,120]
[356719933,1743019840986,-500.0,0.0004397,120]
[356719934,1743019840995,-500.0,0.0004397,120]
[356719935,1743019841004,-500.0,0.0004397,120]
[356719937,1743019841013,-500.0,0.0004397,120]
[356719939,1743019841022,-500.0,0.0004397,120]
[356719940,1743019841031,-500.0,0.0004397,120]
[356719941,1743019841040,-500.0,0.0004397,120]
[356719942,1743019841049,-500.0,0.0004397,120]
[356719943,1743019841058,-500.0,0.0004397,120]
[356719944,1743019841067,-500.0,0.0004397,120]
[356719945,1743019841076,-948.0,0.0004397,120]
[356719946,1743019841085,-500.0,0.0004397,120]
[356719947,1743019841095,-500.0,0.0004397,120]
[356719948,1743019841105,-500.0,0.0004397,120]
[356719949,1743019841114,-500.0,0.0004397,120]
[356719951,1743019841124,-500.0,0.0004397,120]
[356719953,1743019841133,-500.0,0.0004397,120]
[356719955,1743019841142,-500.0,0.0004397,120]
[356719956,1743019841151,-500.0,0.0004397,120]
[356719957,1743019841160,-500.0,0.0004397,120]
[356719958,1743019841169,-500.0,0.0004397,120]
[356719959,1743019841178,-459.99656593,0.0004397,120]
[356719960,1743019841190,-40.00343407,0.0004397,120]
[356719961,1743019841202,-500.0,0.0004397,120]
[356719962,1743019841211,-500.0,0.0004397,120]
[356719963,1743019841220,-500.0,0.0004397,120]
[356719964,1743019841229,-500.0,0.0004397,120]
[356719965,1743019841237,-500.0,0.0004397,120]
[356719966,1743019841247,-500.0,0.0004397,120]
[356719967,1743019841256,-500.0,0.0004397,120]
[356719968,1743019841265,-500.0,0.0004397,120]
[356719969,1743019841275,-500.0,0.0004397,120]
[356719970,1743019841285,-500.0,0.0004397,120]
[356719971,1743019841294,-500.0,0.0004397,120]
[356719972,1743019841303,-500.0,0.0004397,120]
[356719973,1743019841313,-413.30205831,0.0004397,120]
[356719974,1743019841325,-86.69794169,0.0004397,120]
[356719975,1743019841334,-482.62285078,0.0004397,120]
[356719976,1743019841350,-17.37714922,0.0004397,120]
[356719977,1743019841359,-500.0,0.0004397,120]
[356719978,1743019841369,-500.0,0.0004397,120]
[356719979,1743019841378,-500.0,0.0004397,120]
[356719980,1743019841389,-500.0,0.0004397,120]
[356719981,1743019841398,-500.0,0.0004397,120]
[356719982,1743019841408,-500.0,0.0004397,120]
[356719983,1743019841418,-500.0,0.0004397,120]
[356719984,1743019841427,-500.0,0.0004397,120]
[356719985,1743019841436,-500.0,0.0004397,120]
[356719986,1743019841447,-500.0,0.0004397,120]
[356719987,1743019841457,-111.44119491,0.0004397,120]
[356719988,1743019841469,-388.55880509,0.0004397,120]